[Event "Catalonia Championship Absolut"]
[Site "Salou Tarragona"]
[Date "2024.05.11"]
[Round "1.1"]
[White "Alsina Leal, Daniel"]
[Black "Riera Morilla, Elisabeth"]
[Result "1-0"]
[ECO "C84"]
[WhiteElo "2510"]
[BlackElo "1951"]
[Annotator "TA"]
[PlyCount "79"]
[EventDate "2024.05.06"]
[EventType "k.o."]
[EventCountry "ESP"]
[SourceTitle "playchess.com"]
[Source "ChessBase"]
[SourceQuality "1"]
[TimeControl "5400+30"]

{[%evp 18,79,22,33,32,35,21,10,37,42,98,95,100,100,111,108,111,98,98,119,104,110,104,99,83,103,115,106,106,97,140,125,120,125,114,106,113,105,127,105,279,271,280,296,334,299,380,333,689,681,893,973,960,973,1261,1239,1701,1619,1752,1531,1614,770,2070,1772]} 1. e4 {[%emt 1:31:00]} e5 {[%emt 1:31:00]} 2. Nf3 {[%emt 0:00:30]} Nc6 {[%emt 0:00:30]} 3. Bb5 {[%emt 0:00:30]} a6 {[%emt 0:00:30]} 4. Ba4 {[%emt 0:00:30]} Nf6 {[%emt 0:00:30]} 5. O-O {[%emt 0:00:30]} b5 {[%emt 0:00:30][%cal Bb7b5,Bb5b4][%mdl 32]} 6. Bb3 {[%emt 0:00:30]} Be7 {[%emt 0:00:30]} 7. a4 {[%emt 0:00:30]} Bb7 {[%emt 0:00:30]} 8. d3 {[%emt 0:00:30]} d6 {[%emt 0:00:30]} 9. Nc3 {[%emt 0:00:30]} b4 {[%emt 0:00:30]} 10. Ne2 {[%emt 0:00:30]} O-O {[%emt 0:00:30]} 11. a5 {[%emt 0:00:30]} Bc8 {[%emt 0:00:30]} 12. Bd2 {[%emt 0:00:30]} Bg4 {[%emt 0:00:30] The position is equal.} 13. Ba4 {[%emt 0:00:30]} Nb8 {[%emt 0:00:30]} ({Better is} 13... Na7 $14) 14. Bxb4 $16 {[%emt 0:00:30]} Bxf3 {[%emt 0:00:30]} 15. gxf3 {[%emt 0:00:30]} Nh5 {[%emt 0:00:30]} 16. Kh1 {[%emt 0:00:30]} Nd7 {[%emt 0:00:30]} 17. Bd2 {[%emt 0:00:30]} Nc5 {[%emt 0:00:30]} 18. Bc6 {[%emt 0:00:30]} Rb8 {[%emt 0:00:30]} 19. b4 {[%emt 0:00:30]} Ne6 {[%emt 0:00:30] [#]} 20. f4 $1 {[%emt 0:00:30][%mdl 512] Wards off Bg5} exf4 {[%emt 0:00:30]} 21. c3 {[%emt 0:00:30]} Kh8 {[%emt 0:00:30]} 22. Ng1 {[%emt 0:00:30]} g6 {[%emt 0:00:30]} 23. Re1 {[%emt 0:00:30]} Bh4 {[%emt 0:00:30]} 24. Qe2 {[%emt 0:00:30]} Qc8 {[%emt 0:00:30]} 25. Nf3 {[%emt 0:00:30] Prevents h6.} Bf6 {[%emt 0:00:30]} 26. e5 {[%emt 0:00:30]} Bg7 {[%emt 0:00:30]} 27. d4 {[%emt 0:00:30]} Nd8 {[%emt 0:00:30]} 28. Bd5 $36 {[%emt 0:00:30][%mdl 2048] White is really pushing. White is more active.} c6 $2 {[%emt 0:00:30]} (28... Re8 $16 29. Qd3 dxe5) 29. Bc4 $18 {[%emt 0:00:30]} Ra8 {[%emt 0:00:30]} 30. exd6 {[%emt 0:00:30]} Qh3 {[%emt 0:00:30]} 31. Ng5 {[%emt 0:00:30]} ({Less strong is} 31. Bxa6 Rxa6 32. Qxa6 Qxf3+ 33. Kg1 Qg4+ 34. Kh1 Qf3+ 35. Kg1 Qg4+ 36. Kh1 Qf3+ $11) 31... Qh4 {[%emt 0:00:30]} 32. Rg1 {[%emt 0:00:30][%cal Og1g4] [#] Hoping for Rg4!} h6 $2 {[%emt 0:00:30]} (32... f6 33. Nf3 Qh3) 33. Rg4 {[%emt 0:00:30] White is clearly winning.} Ng3+ {[%emt 0:00:30]} 34. fxg3 {[%emt 0:00:30]} Qh5 {[%emt 0:00:30]} 35. Bxf4 {[%emt 0:00:30][%cal Bd2f4,Bf4g5,Bg5e7][%mdl 32]} hxg5 {[%emt 0:00:30]} 36. Bxg5 {[%emt 0:00:30]} Kg8 {[%emt 0:00:30]} 37. Rf1 {[%emt 0:00:30]} (37. Bxa6 Rxa6 38. Be7 Re8 39. Qxa6 Qxg4 $16) 37... Ra7 {[%emt 0:00:30]} 38. Be7 {[%emt 0:00:30]} (38. Bxa6 Rxa6 39. d7 Ne6 $18) 38... Re8 {[%emt 0:00:30]} 39. Re4 {[%emt 0:00:30]} (39. Bxa6 Rxa6 40. Qxa6 Qxg4 $16) 39... Qh3 {[%emt 0:00:30]} 40. Qf3 {[%emt 0:00:30] Black got outplayed after the opening.   Weighted Error Value: White=0.04 (flawless) /Black=0.52.  Loses game:     	---       	Black=1      Mistake:       	---       	Black=2      Inaccurate:     	---       	Black=3      OK:         	White=11    	Black=8      Best:        	White=5     	Black=1} 1-0

[Event "Catalonia Championship Absolut"]
[Site "Salou Tarragona"]
[Date "2024.05.11"]
[Round "1.1"]
[White "Guerra Mendez, Jose Angel"]
[Black "Guasch Figuerola, Agusti"]
[Result "1-0"]
[ECO "B07"]
[WhiteElo "2489"]
[BlackElo "1991"]
[Annotator "RC"]
[PlyCount "73"]
[EventDate "2024.05.06"]
[EventType "k.o."]
[EventCountry "ESP"]
[SourceTitle "playchess.com"]
[Source "ChessBase"]
[SourceQuality "1"]
[TimeControl "5400+30"]

1. e4 {[%emt 0:00:03]} g6 {[%emt 0:00:04]} 2. d4 {[%emt 0:00:17]} Bg7 {[%emt 0:00:06]} 3. Nf3 {[%emt 0:00:32]} d6 {[%emt 0:00:21]} 4. c3 {[%emt 0:01:05]} Nf6 {[%emt 0:00:30]} 5. Bd3 {[%emt 0:00:42]} O-O {[%emt 0:02:36]} 6. O-O {[%emt 0:00:12]} Nc6 {[%emt 0:03:45]} 7. Re1 {[%emt 0:02:29]} e5 {[%emt 0:00:45]} 8. h3 {[%emt 0:00:21]} Re8 {[%emt 0:05:59]} 9. d5 {[%emt 0:01:04]} Ne7 {[%emt 0:01:17]} 10. c4 {[%emt 0:00:17]} Nh5 {[%emt 0:03:17]} 11. Nc3 {[%emt 0:01:42]} h6 {[%emt 0:03:49]} 12. Be3 {[%emt 0:02:18]} Nf4 {[%emt 0:00:41]} 13. Bf1 {[%emt 0:14:15]} f5 {[%emt 0:06:02]} 14. Bxf4 {[%emt 0:21:24]} exf4 {[%emt 0:00:17]} 15. e5 {[%emt 0:00:07]} dxe5 {[%emt 0:32:47]} 16. Nxe5 {[%emt 0:00:07]} Rf8 {[%emt 0:01:09]} 17. c5 {[%emt 0:01:30]} Rf6 {[%emt 0:06:21]} 18. d6 {[%emt 0:19:25]} cxd6 {[%emt 0:00:33]} 19. Bc4+ {[%emt 0:00:09]} d5 {[%emt 0:15:36]} 20. Nxd5 {[%emt 0:01:42]} Nxd5 {[%emt 0:00:06]} 21. Bxd5+ {[%emt 0:00:11]} Kh7 {[%emt 0:00:13]} 22. Qb3 {[%emt 0:03:06]} Qc7 {[%emt 0:04:33]} 23. Rad1 {[%emt 0:15:27]} Rf8 {[%emt 0:02:59]} 24. Nd3 {[%emt 0:00:22]} Rb8 {[%emt 0:00:22]} 25. Qc4 {[%emt 0:00:38]} g5 {[%emt 0:00:18]} 26. b4 {[%emt 0:01:00]} a6 {[%emt 0:01:27]} 27. Re2 {[%emt 0:01:29]} Bd7 {[%emt 0:00:21]} 28. Rde1 {[%emt 0:06:37]} Bb5 {[%emt 0:01:57]} 29. Qb3 {[%emt 0:00:41]} Rbe8 {[%emt 0:00:21]} 30. a4 {[%emt 0:00:48]} Rxe2 {[%emt 0:00:42]} 31. Rxe2 {[%emt 0:00:05]} Re8 {[%emt 0:00:11]} 32. Be6 {[%emt 0:00:38]} Bxd3 {[%emt 0:02:25]} 33. Qxd3 {[%emt 0:00:35]} Kh8 {[%emt 0:00:17]} 34. Qxf5 {[%emt 0:01:19]} Rf8 {[%emt 0:01:04]} 35. Qe4 {[%emt 0:01:22]} Re8 {[%emt 0:00:41]} 36. Qg6 {[%emt 0:00:16]} Qd8 {[%emt 0:01:12]} 37. Bf5 {[%emt 0:01:13]} 1-0

[Event "Catalonia Championship Absolut"]
[Site "Salou Tarragona"]
[Date "2024.05.11"]
[Round "1.1"]
[White "Ayats Llobera, Gerard"]
[Black "Serrano Batova, Vicent"]
[Result "1/2-1/2"]
[ECO "B31"]
[WhiteElo "2449"]
[BlackElo "2137"]
[Annotator "TA"]
[PlyCount "166"]
[EventDate "2024.05.06"]
[EventType "k.o."]
[EventCountry "ESP"]
[SourceTitle "playchess.com"]
[Source "ChessBase"]
[SourceQuality "1"]
[TimeControl "5400+30"]

{[%evp 16,166,19,26,25,15,22,37,34,26,15,33,18,0,8,0,0,6,0,-13,8,0,0,0,27,39,34,26,42,27,32,24,25,18,33,11,10,0,0,4,0,7,25,25,22,19,21,33,25,16,95,54,106,116,135,82,154,154,164,164,155,152,159,152,167,168,167,148,163,164,141,168,225,89,239,239,233,244,296,271,408,397,428,421,576,425,571,485,426,0,474,525,549,545,496,477,1393,1468,1343,992,1096,1160,1462,1462,1415,1278,1442,1390,2587,2701,4762,3317,2097,0,29952,29952,29949,29949,29938,29941,29967,29967,29955,0,0,0,0,0,0,0,0,0,0,0,0,0,0,0,0,0,0,0,0,0,0,0,0,0,0,0,0,0,0]} 1. e4 {[%emt 0:00:04]} c5 {[%emt 0:00:03]} 2. Nf3 {[%emt 0:00:02]} Nc6 {[%emt 0:00:13]} 3. Bb5 {[%emt 0:00:52]} g6 {[%emt 0:00:19]} 4. Bxc6 {[%emt 0:00:07]} dxc6 {[%emt 0:00:02]} 5. Nc3 {[%emt 0:00:19]} Bg7 {[%emt 0:00:37]} 6. d3 {[%emt 0:00:14]} Nf6 {[%emt 0:01:18][%cal Bg8f6,Bf6d7,Bd7f8,Bf8e6,Be6d4][%mdl 32]} 7. h3 {[%emt 0:00:13]} Nd7 {[%emt 0:00:02]} 8. Be3 {[%emt 0:00:00]} e5 {[%emt 0:00:00]} 9. Qd2 {[%emt 0:00:00]} h6 {[%emt 0:00:00]} 10. O-O {[%emt 0:00:09]} b6 {[%emt 0:00:00]} 11. Nh2 {[%emt 0:00:10]} Nf8 {[%emt 0:00:11] White is slightly better.} 12. f4 {[%emt 0:00:05]} exf4 {[%emt 0:00:04]} 13. Bxf4 {[%emt 0:00:03]} Ne6 {[%emt 0:00:28]} 14. Bg3 {[%emt 0:00:04]} Qg5 {[%emt 0:42:01]} 15. Qe1 {[%emt 0:00:07]} Nd4 {[%emt 0:00:18]} 16. Qf2 {[%emt 0:00:07]} O-O {[%emt 0:14:50][%cal Od4c2]} 17. Rae1 {[%emt 0:04:32]} Qe7 {[%emt 0:07:48]} (17... Nxc2 $2 18. h4 Nxe1 19. hxg5 $18) 18. Kh1 {[%emt 0:05:36]} Be6 {[%emt 0:00:24]} 19. e5 {[%emt 0:00:25]} Nf5 {[%emt 0:01:53]} 20. Ne4 {[%emt 0:02:02]} Qc7 {[%emt 0:03:12][%cal Oa8e8]} 21. Bf4 {[%emt 0:00:47] Nf6+ would now be deadly.} g5 $1 {[%emt 0:05:23]} 22. g4 {[%emt 0:02:21]} Nh4 {[%emt 0:04:19][%cal Oe6d5]} 23. Bg3 {[%emt 0:00:54]} Ng6 {[%emt 0:01:19]} 24. Nf3 {[%emt 0:11:30][%cal Bh2f3,Bf3d2,Bd2e4,Be4d6][%mdl 32] Black must now prevent h4.} Qd7 {[%emt 0:02:13][%cal Oe6d5]} 25. Nfd2 {[%emt 0:02:06]} Qd4 {[%emt 0:04:43]} 26. Qxd4 {[%emt 0:09:45]} cxd4 {[%emt 0:00:02]} 27. Nd6 {[%emt 0:01:20]} Rad8 {[%emt 0:01:23][%cal Og7e5]} 28. Nf5 {[%emt 0:06:41]} Rd5 {[%emt 0:01:51]} 29. Ne4 {[%emt 0:00:29]} Rfd8 {[%emt 0:02:21]} 30. Nxg7 {[%emt 0:08:31]} Kxg7 {[%emt 0:00:03]} 31. Nd6 {[%emt 0:01:10]} Rh8 {[%emt 0:07:15]} 32. Kg1 {[%emt 0:01:45]} Ra5 {[%emt 0:01:11]} (32... h5 $11) 33. a3 {[%emt 0:00:16] White is more active.} h5 {[%emt 0:00:16]} (33... Rd5 $14) 34. Nf5+ $16 {[%emt 0:00:09]} Bxf5 {[%emt 0:00:55]} 35. gxf5 {[%emt 0:01:18]} (35. Rxf5 $142 hxg4 36. hxg4) 35... Nf4 {[%emt 0:00:29]} 36. Bxf4 {[%emt 0:04:34]} gxf4 {[%emt 0:00:01]} 37. Rxf4 {[%emt 0:40:13][%mdl 4096] Endgame. KRR-KRR} Re8 {[%emt 0:00:38]} 38. Rfe4 {[%emt 0:00:00]} (38. Rxd4 $6 Rexe5 39. Rxe5 Rxe5 $11) 38... Kh6 {[%emt 0:00:02]} 39. h4 {[%emt 0:00:00] Wards off f6} (39. Rxd4 $6 Rexe5 40. Rxe5 Rxe5 $14) 39... f6 {[%emt 0:01:04][%cal Ra5e5]} 40. Rxd4 {[%emt 0:00:00] Strongly threatening Rd6.} (40. exf6 $6 Rg8+ 41. Kh1 Rxf5 $16) 40... Raxe5 {[%emt 0:00:47]} 41. Rxe5 {[%emt 0:00:00]} Rxe5 $18 {[%emt 0:00:26] KR-KR} 42. Rd6 $1 {[%emt 0:00:00][%csl LRc6,LRf6]} Rxf5 {[%emt 0:00:02]} 43. Rxc6 {[%emt 0:00:00]} Rf4 {[%emt 0:00:16]} (43... b5 $142 44. Kg2 Rf4) 44. Kg2 {[%emt 0:00:00]} (44. Rc4 $1 $18 {[%cal Rc4f4] and the rest is easy.} Rf5 45. Kh2) 44... Kg6 {[%emt 0:00:53]} (44... Rg4+ $16 45. Kf2 Rxh4) 45. Rc4 $1 {[%emt 0:00:00]} Rf5 {[%emt 0:00:53]} 46. b4 {[%emt 0:00:00]} Rd5 {[%emt 0:00:30]} 47. Rc7 {[%emt 0:00:00]} a5 {[%emt 0:00:14]} (47... Kf5 $142 48. Kf3 (48. Rxa7 Kg4 $18) 48... Rd4) 48. Rc6 {[%emt 0:00:00]} axb4 {[%emt 0:00:30]} 49. axb4 {[%emt 0:00:00]} (49. Rxb6 Rc5 $11 (49... bxa3 50. Ra6 $14)) 49... Re5 {[%emt 0:00:02]} 50. Kf3 {[%emt 0:00:00]} (50. Rxb6 Re2+ 51. Kf1 Rxc2 $11) 50... Rf5+ {[%emt 0:00:02]} 51. Ke3 {[%emt 0:00:00]} Re5+ {[%emt 0:00:48]} 52. Kf3 {[%emt 0:00:00]} Rf5+ $1 {[%emt 0:00:04]} 53. Kg3 {[%emt 0:00:00]} Rb5 {[%emt 0:00:09]} 54. c3 {[%emt 0:00:00]} Kf5 {[%emt 0:00:09]} 55. Kf3 {[%emt 0:00:00]} Ke5 {[%emt 0:01:18]} (55... Kg6 $142 56. Ke4 Re5+ 57. Kd4 b5) 56. d4+ {[%emt 0:00:00]} Kd5 {[%emt 0:00:46]} 57. Rxf6 {[%emt 0:00:00]} Kc4 {[%emt 0:00:02]} 58. Rc6+ {[%emt 0:00:00]} Kd3 {[%emt 0:00:01]} 59. Kf4 {[%emt 0:00:00]} Rd5 {[%emt 0:00:11]} 60. c4 {[%emt 0:00:00]} (60. Rxb6 Kxc3 61. Ke3 Rd8 $18) 60... Rxd4+ {[%emt 0:00:45]} 61. Kg5 {[%emt 0:00:00]} b5 {[%emt 0:00:09]} 62. cxb5 {[%emt 0:00:00]} (62. Kxh5 bxc4 63. b5 c3 $11) 62... Rd5+ {[%emt 0:00:02]} 63. Kg6 {[%emt 0:00:00]} Rxb5 {[%emt 0:00:50] [#]} 64. Re6 $2 {[%emt 0:00:00]} (64. Rc5 $1 $18 {[%cal Rc5b5]} Rxb4 65. Kxh5 (65. Rxh5 Ke3 $11)) 64... Rxb4 $2 {[%emt 0:01:34][%mdl 8192]} (64... Kd4 $11) 65. Kxh5 {[%emt 0:00:00]} Rb1 {[%emt 0:00:53]} 66. Kh6 {[%emt 0:00:00]} Kd4 {[%emt 0:00:41] [#]} 67. h5 $1 {[%emt 0:00:00]} Rh1 {[%emt 0:00:02]} 68. Kg6 {[%emt 0:00:00]} Kd5 {[%emt 0:00:35]} 69. Re2 $2 {[%emt 0:00:00]} (69. Rb6 {mates} Kc5 70. Rf6 Rh4 71. h6 Rh3 72. h7 Kb4 73. Kg7 Ka4 74. Ra6+ (74. h8=R Rxh8 75. Kxh8 Kb4 76. Rc6 Kb5 77. Rc2 Kb4 78. Kg7 Kb3) 74... Kb3 75. Rh6 (75. h8=R Rg3+ 76. Rg6 Rd3 $18) (75. h8=Q Rxh8 76. Kxh8 Kc4 77. Ra4+ Kb3 78. Rg4 Kc3 79. Kg7 Kd3) 75... Rg3+ 76. Kf7 (76. Rg6 Rh3 $18) 76... Rf3+ 77. Ke7 Re3+ 78. Kd7) 69... Rg1+ $11 {[%emt 0:00:22] The position is equal.} 70. Kh7 {[%emt 0:00:00]} (70. Kf6 $5 Rf1+ $8 71. Kg5 Rg1+ 72. Kh6 $11) 70... Kd6 $1 {[%emt 0:00:12]} 71. h6 {[%emt 0:00:00]} Kd7 {[%emt 0:00:10] Dodges Re8} 72. Kh8 {[%emt 0:00:00]} Rg6 {[%emt 0:00:49]} 73. Kh7 {[%emt 0:00:00]} Rg1 {[%emt 0:00:02]} 74. Ra2 {[%emt 0:06:55]} Ke7 {[%emt 0:00:22]} 75. Ra7+ {[%emt 0:00:08]} Kf8 {[%emt 0:00:29]} 76. Rg7 {[%emt 0:00:03]} Rh1 {[%emt 0:02:11]} 77. Rg3 {[%emt 0:00:02]} Rf1 {[%emt 0:00:20]} 78. Rg2 {[%emt 0:01:12]} (78. Kg6 $5 Kg8 $8 79. Rc3 Rg1+ 80. Kh5 $11) 78... Rf3 {[%emt 0:00:02]} 79. Kg6 {[%emt 0:00:05] White threatens h7 and mate.} Kg8 {[%emt 0:00:37]} 80. h7+ {[%emt 0:00:11]} Kh8 {[%emt 0:00:02]} 81. Rd2 {[%emt 0:00:05] White wants to mate with Rd8+.} Rg3+ {[%emt 0:00:08]} 82. Kh6 {[%emt 0:00:04] Intending Rd8+ and mate.} Rh3+ {[%emt 0:00:04]} 83. Kg6 {[%emt 0:00:02][%cal Rd2d8]} Rg3+ {[%emt 0:00:06] Black defended with fortune.   Weighted Error Value: White=0.15 (very precise) /Black=0.19 (very precise) .  Mistake:       	White=2     	Black=7      Inaccurate:     	White=1     	Black=2      OK:         	White=21    	Black=26     Best:        	White=4     	Black=4      Strong:       	White=1     	Black=3} 1/2-1/2

[Event "Catalonia Championship Absolut"]
[Site "Salou Tarragona"]
[Date "2024.05.11"]
[Round "1.1"]
[White "Narciso Dublan, Marc"]
[Black "Perpinya Rofes, Lluis Maria"]
[Result "1/2-1/2"]
[ECO "A27"]
[WhiteElo "2424"]
[BlackElo "2205"]
[Annotator "TA"]
[PlyCount "99"]
[EventDate "2024.05.06"]
[EventType "k.o."]
[EventCountry "ESP"]
[SourceTitle "playchess.com"]
[Source "ChessBase"]
[SourceQuality "1"]
[TimeControl "5400+30"]

{[%evp 20,99,51,44,55,53,52,48,58,53,75,41,41,47,94,104,109,101,107,114,108,114,104,104,172,152,178,187,172,193,200,196,208,179,183,159,170,34,198,-127,-128,-127,-127,-120,-122,-122,-117,-113,-110,-160,-153,-204,-201,-367,-378,-381,-393,-416,-380,-396,-366,-402,-393,-408,-316,-356,-352,-387,-54,-52,0,0,0,0,0,0,0,0,0,0,0,0]} 1. c4 {[%emt 0:00:17]} e5 {[%emt 0:00:32]} 2. Nc3 {[%emt 0:00:22]} Nc6 {[%emt 0:00:23]} 3. Nf3 {[%emt 0:00:23]} g6 {[%emt 0:01:08]} 4. d4 {[%emt 0:00:22]} exd4 {[%emt 0:00:46]} 5. Nxd4 {[%emt 0:00:30]} Bg7 {[%emt 0:00:20]} 6. Nxc6 {[%emt 0:00:17]} bxc6 {[%emt 0:00:32]} 7. g3 {[%emt 0:00:44]} Ne7 {[%emt 0:02:48]} 8. Bg2 {[%emt 0:00:31]} O-O {[%emt 0:01:27]} 9. O-O {[%emt 0:00:19]} d6 {[%emt 0:06:05]} 10. Bg5 {[%emt 0:19:29]} Rb8 {[%emt 0:06:58]} 11. Qd2 {[%emt 0:03:43]} Be6 {[%emt 0:02:31]} 12. b3 {[%emt 0:00:43]} c5 {[%emt 0:09:54]} 13. Rad1 {[%emt 0:02:24]} f6 {[%emt 0:02:10] White is slightly better.} 14. Bf4 {[%emt 0:04:34]} Re8 {[%emt 0:05:40]} 15. Na4 {[%emt 0:06:10]} Qc8 {[%emt 0:03:38]} 16. Qa5 {[%emt 0:01:22]} Bd7 {[%emt 0:07:24] [#]} (16... g5 $14 17. Bc1 Bd7) 17. Nxc5 $1 $16 {[%emt 0:11:25]} dxc5 {[%emt 0:13:21]} 18. Qxc7 {[%emt 0:00:49] White has more active pieces.} Qxc7 {[%emt 0:01:14]} 19. Bxc7 {[%emt 0:00:09]} Be6 {[%emt 0:01:32]} 20. Bxb8 {[%emt 0:00:29]} Rxb8 {[%emt 0:00:28]} 21. Rd6 $36 {[%emt 0:02:24][%mdl 2048] Black is under strong pressure.} Kf7 {[%emt 0:03:04]} (21... Bc8 $16 {might work better.} 22. Rfd1 Kf7) 22. Ra6 $18 {[%emt 0:05:37]} Nc8 {[%emt 0:01:10]} 23. Rc6 $1 {[%emt 0:00:17]} Bf8 {[%emt 0:01:08]} 24. Rd1 {[%emt 0:01:41] Wards off Bd6} Be7 {[%emt 0:05:22]} 25. Rc7 {[%emt 0:01:06] Rd8 would now be deadly.} Kf8 {[%emt 0:01:13]} 26. Bc6 {[%emt 0:06:47]} a5 {[%emt 0:07:47]} 27. Rd3 {[%emt 0:07:43]} h5 {[%emt 0:11:37]} 28. f3 {[%emt 0:01:10]} (28. Bd7 $18 Bg4 29. Bxg4 hxg4 30. Kg2) 28... Rb6 $2 {[%emt 0:01:40]} (28... Bd6 $14 29. Rb7 (29. Rxc8+ Rxc8 30. Rxd6 Ke7 $15) 29... Rxb7 30. Bxb7 Bc7) 29. Re3 $2 {[%emt 0:02:07] [#]} (29. Bd7 $1 $18 Bxd7 30. Rdxd7) 29... Bd8 $1 $17 {[%emt 0:00:00]} 30. Rxe6 {[%emt 0:10:17][%csl Gc6][%cal Re6e8]} Bxc7 {[%emt 0:00:56]} 31. Re8+ {[%emt 0:00:07]} Kf7 {[%emt 0:00:25] And now ...Nd6 would win.} 32. Ba4 {[%emt 0:00:07]} Ne7 {[%emt 0:01:45]} 33. Ra8 {[%emt 0:00:19]} Rd6 {[%emt 0:00:37]} 34. Ra7 {[%emt 0:01:24]} (34. Kf2 $142) 34... Rd1+ {[%emt 0:00:36]} 35. Kf2 {[%emt 0:00:29] [#]} (35. Kg2 $17 Be5 36. f4) 35... Be5 $1 $19 {[%emt 0:00:45]} 36. b4 $2 {[%emt 0:07:20]} (36. Bc6 {is a better defense.}) 36... Bd4+ {[%emt 0:00:22]} 37. e3 {[%emt 0:00:06]} Rd2+ {[%emt 0:00:13]} 38. Kf1 {[%emt 0:00:36]} Bxe3 {[%emt 0:00:28]} 39. bxa5 {[%emt 0:02:03]} Rf2+ {[%emt 0:00:16]} 40. Ke1 {[%emt 0:00:06]} Rxa2 {[%emt 0:00:05]} 41. Bc6 {[%emt 0:01:37]} Bd2+ {[%emt 0:00:29]} (41... Rxh2 42. Bd5+ Ke8 43. Ra8+ Kd7 44. Ra7+ Kd6 45. Ra6+ Kc7 46. Ra7+ Kd8 47. Ra8+ Nc8 48. a6 $15) 42. Kd1 {[%emt 0:00:06]} Rxa5 {[%emt 0:01:39]} ({Not} 42... Bxa5 43. Bd5+ Ke8 44. Ra8+ Kd7 45. Ra7+ Kd6 46. Ra6+ Ke5 47. Re6+ Kd4 48. Rxe7 $17) 43. Rb7 {[%emt 0:00:27]} Bh6 {[%emt 0:00:45]} (43... Bb4 $19 {Threatens to win with ...Ra1+.} 44. g4 hxg4 45. fxg4 Ra1+ 46. Ke2 f5) 44. Bd5+ $1 $15 {[%emt 0:00:16]} Kf8 {[%emt 0:00:30]} (44... Ke8 $1 $15 45. Rb8+ Kd7 46. Rb7+ Kd8 47. Rb8+ Nc8) 45. Rb8+ $1 $11 {[%emt 0:00:05] The position is equal.} Kg7 {[%emt 0:00:17]} 46. Rb7 $1 {[%emt 0:00:02]} Ra1+ {[%emt 0:00:35]} 47. Ke2 {[%emt 0:00:42]} Ra2+ {[%emt 0:00:06]} 48. Kf1 {[%emt 0:01:46]} Ra1+ {[%emt 0:00:27]} 49. Ke2 {[%emt 0:00:06]} Ra2+ {[%emt 0:00:33]} 50. Kf1 {[%emt 0:00:05] White used his chance.   Weighted Error Value: White=0.25 (precise) /Black=0.30.  Loses game:     	---       	Black=1      Missed win:     	White=1     	Black=1      Mistake:       	White=4     	Black=3      Inaccurate:     	White=1     	---        OK:         	White=15    	Black=16     Best:        	White=5     	Black=2      Strong:       	White=4     	Black=1      Brilliant:      	White=1     	---} 1/2-1/2